[Event "1000GM Schev-G1 March 2024"]
[Site "Santa Clara"]
[Date "2024.03.09"]
[Round "1.2"]
[White "Arutla, Aditya"]
[Black "Heimann, Mark"]
[Result "*"]
[ECO "B32"]
[WhiteElo "2239"]
[BlackElo "2435"]
[Annotator "TA"]
[PlyCount "180"]
[EventDate "2024.03.06"]
[EventType "schev"]
[EventCountry "USA"]
[SourceTitle "playchess.com"]
[Source "ChessBase"]
[SourceQuality "1"]
[TimeControl "5400+30"]

{[%evp 21,180,20,30,25,30,26,34,19,31,28,27,21,42,54,62,37,40,27,22,24,9,15,24,29,29,25,37,22,31,11,14,-40,-53,-46,0,-48,-35,-77,-53,-64,0,-126,-40,-45,-40,-37,-37,-70,-76,-64,-77,-82,0,0,0,0,462,0,0,0,0,0,0,0,0,0,0,0,0,0,62,8,8,0,0,0,0,-31,-39,-51,-36,-39,-44,-118,-111,-122,-37,-46,0,0,0,0,-7,-7,0,-8,0,0,0,0,0,0,0,0,0,0,0,0,0,-158,-158,-158,-158,-158,-158,-239,-158,-158,-158,-158,-158,-158,-158,-158,-158,-158,-158,-158,-158,-158,-158,-158,-158,-158,-158,-158,-158,-158,-158,-158,-158,-158,-158,-158,-158,-158,-158,-158,-158,-158,-158,-158,-158,-158,-158,-158,-158,-158,-158,-96,-96]} 1. e4 {[%emt 0:00:01]} c5 {[%emt 0:06:13]} 2. Nf3 {[%emt 0:00:14][%cal Bg1f3,Bf3d4,Bd4b5,Bb5a3,Ba3c4][%mdl 32]} Nc6 {[%emt 0:00:08]} 3. d4 {[%emt 0:00:09]} cxd4 {[%emt 0:00:06]} 4. Nxd4 {[%emt 0:00:05]} e5 {[%emt 0:00:06]} 5. Nb5 {[%emt 0:00:11]} d6 {[%emt 0:00:07]} 6. N1c3 {[%emt 0:01:31]} a6 {[%emt 0:00:19]} 7. Na3 {[%emt 0:00:14]} b5 {[%emt 0:01:09]} 8. Nd5 {[%emt 0:00:40]} Nce7 {[%emt 0:00:28]} 9. c4 {[%emt 0:02:59]} Nxd5 {[%emt 0:01:59]} 10. exd5 {[%emt 0:00:35]} bxc4 {[%emt 0:00:49]} 11. Nxc4 {[%emt 0:00:30]} Nf6 {[%emt 0:02:54]} 12. Be3 {[%emt 0:03:00]} Rb8 {[%emt 0:06:04] Verhindert Nb6.} 13. Be2 {[%emt 0:03:06]} Be7 {[%emt 0:01:51]} 14. O-O {[%emt 0:01:29] Weiß steht etwas besser.} O-O {[%emt 0:00:22]} 15. a4 {[%emt 0:04:26][%cal Ba2a4,Ba4a5][%mdl 32]} Bb7 {[%emt 0:08:30]} 16. Nb6 {[%emt 0:01:09]} Nd7 {[%emt 0:09:28]} 17. a5 {[%emt 0:06:59]} Nxb6 {[%emt 0:01:56]} 18. Bxb6 {[%emt 0:06:38]} Qd7 {[%emt 0:00:06]} 19. Bc4 {[%emt 0:02:20]} Bd8 {[%emt 0:04:47]} 20. Be3 {[%emt 0:08:09]} f5 {[%emt 0:03:08][%cal Bf7f5,Bf5f4][%mdl 32]} 21. f3 {[%emt 0:04:00]} Bf6 {[%emt 0:01:01]} 22. Qe2 {[%emt 0:04:08]} Ra8 {[%emt 0:03:52]} 23. b4 {[%emt 0:04:23]} Qf7 {[%emt 0:02:07][%cal Oe5e4]} 24. Rfd1 {[%emt 0:01:58]} f4 {[%emt 0:02:21]} 25. Bb6 {[%emt 0:02:01]} e4 $1 {[%emt 0:00:58] Gegen Bd3 gerichtet.} 26. fxe4 {[%emt 0:06:19]} (26. Rab1 $11 exf3 27. Qxf3) 26... Bxa1 $15 {[%emt 0:00:49]} 27. Rxa1 {[%emt 0:00:02]} Rae8 {[%emt 0:08:48]} (27... Qg6 $15 {ist eher angebracht.} 28. Qf3 Rac8) 28. Qf3 {[%emt 0:04:37]} (28. b5 $1 $11) 28... Rc8 {[%emt 0:04:32]} 29. Be2 {[%emt 0:04:40]} Qf6 $1 {[%emt 0:00:30] Verhindert Bd4} 30. Rd1 {[%emt 0:00:58]} Qb2 {[%emt 0:02:46]} (30... Rc3 $1 $15 31. Qh5 (31. Bd4 $2 Rxf3 32. Bxf6 Re3 $19) 31... Rb3) 31. Qf1 {[%emt 0:07:05]} (31. b5 $11 {bleibt in der Remisbreite.} axb5 32. Bd4) 31... Qxb4 {[%emt 0:01:01]} (31... Rc2 $1 $17 {[%cal Rc2e2]} 32. Rb1 Qc3) 32. e5 $1 {[%emt 0:01:41]} Rc2 {[%emt 0:18:11]} (32... dxe5 33. d6 Qa4 (33... f3 34. gxf3 Rc6 35. d7 $15) 34. d7 $11) 33. e6 {[%emt 0:02:23][%cal Oe6e7]} Rd2 {[%emt 0:00:40]} 34. Bf3 {[%emt 0:02:01]} Rxd1 $1 {[%emt 0:00:52]} 35. Qxd1 {[%emt 0:00:15]} Rf5 $1 {[%emt 0:02:50]} 36. h3 {[%emt 0:06:45]} Qc4 {[%emt 0:01:49] Gegen Qc1 gerichtet.} (36... Re5 $17 37. Bf2 Qxa5) 37. Qe1 $11 {[%emt 0:01:30]} Qc8 {[%emt 0:01:51]} (37... Bxd5 $2 38. Bxd5 (38. e7 Bf7 $18) 38... Qxd5 39. e7 $18) (37... Re5 $5 38. Qh4 $8 h5 (38... Qc1+ $2 39. Kh2 $18) (38... g5 $2 39. Qh5 $18) 39. Qd8+ (39. Bxh5 $2 g5 $19) 39... Kh7 40. Qxd6 (40. e7 Qc1+ 41. Kh2 Qe1 $15) 40... Re1+ 41. Kh2 Qc1 $11) 38. Qe4 $36 {[%emt 0:07:17][%mdl 2048] Weiss kämpft um Vorteil.} g6 {[%emt 0:00:59][%mdl 8192]} (38... Rxd5 $2 39. Kh2 $18) (38... Qc1+ $11 {und Schwarz muss sich keine Sorgen machen.} 39. Kh2 Re5) 39. e7 $2 {[%emt 0:01:31]} (39. Qa4 $1 $18) 39... Re5 $1 {[%emt 0:02:12]} 40. Qxf4 {[%emt 0:00:21]} Rxe7 {[%emt 0:00:08]} 41. Qxd6 {[%emt 0:01:29]} Qd7 {[%emt 0:00:33]} 42. Qb8+ {[%emt 0:01:02]} Re8 {[%emt 0:00:07]} 43. Qc7 {[%emt 0:00:36]} Qxc7 {[%emt 0:00:35]} 44. Bxc7 {[%emt 0:00:01][%mdl 4096] Endspiel. KRB-KB} Bc8 {[%emt 0:00:31]} 45. d6 {[%emt 0:00:22]} Bd7 {[%emt 0:00:59]} (45... Re3 $11) 46. Bd5+ {[%emt 0:01:05]} ({Günstiger ist} 46. Bb7 $1 $14) 46... Kf8 {[%emt 0:00:30]} 47. Kf2 {[%emt 0:00:17]} Bb5 {[%emt 0:00:25]} 48. Kf3 {[%emt 0:00:20]} Re1 {[%emt 0:00:24]} 49. Bc4 {[%emt 0:00:52] Droht stark Bxb5.} Ke8 {[%emt 0:00:55]} 50. Bg8 {[%emt 0:00:26]} (50. Bxb5+ axb5 51. Kf2 Rc1 $19) 50... h6 {[%emt 0:00:25]} 51. g3 {[%emt 0:00:36]} Kd7 {[%emt 0:00:09]} 52. Bh7 {[%emt 0:00:14]} (52. Bb3 $15) 52... Bd3 $17 {[%emt 0:00:28] ...Re8 wäre nun fies.} 53. Bg8 {[%emt 0:00:34]} Re8 {[%emt 0:01:00]} (53... g5 $17 54. Bb3 Re4 (54... Be4+ 55. Kg4 $17)) 54. Bb3 $1 $15 {[%emt 0:00:08]} Be4+ {[%emt 0:00:32]} 55. Kf4 {[%emt 0:00:35]} g5+ {[%emt 0:00:44]} 56. Kg4 {[%emt 0:00:13]} Rf8 {[%emt 0:00:02][%csl Gf8][%cal Re4f3]} 57. Kh5 {[%emt 0:01:50]} Rf6 {[%emt 0:00:35]} 58. g4 {[%emt 0:00:00]} Bc6 {[%emt 0:00:40] Zielt auf ...Kc8 ab.} 59. h4 $1 {[%emt 0:00:24]} gxh4 {[%emt 0:00:58]} 60. Kxh4 {[%emt 0:01:06]} Rf1 {[%emt 0:00:10]} 61. Bc2 {[%emt 0:00:00]} Rh1+ {[%emt 0:00:47]} 62. Kg3 {[%emt 0:00:00]} Rg1+ {[%emt 0:00:10]} 63. Kf4 {[%emt 0:00:00]} Kc8 {[%emt 0:00:30]} 64. Bf5+ {[%emt 0:01:25]} Bd7 {[%emt 0:00:04] Und jetzt ...Rf1+ wäre schön.} 65. Bxd7+ $2 {[%emt 0:00:15]} ({Weiss braucht} 65. Bd3 $1 $11 Rxg4+ (65... Bxg4 66. Bxa6+ Kd7 67. Bb5+ Kc8 68. Ba6+ Kd7 69. Bb6 $11) 66. Kf3) 65... Kxd7 $11 {[%emt 0:00:01] KR-KB} 66. Kf5 {[%emt 0:00:01]} Rh1 {[%emt 0:01:10]} 67. Kf4 {[%emt 0:01:02]} Ke6 {[%emt 0:00:06]} 68. Kg3 {[%emt 0:00:32]} (68. Ke3 $17 {war einen Versuch wert.}) 68... Rd1 {[%emt 0:00:14]} 69. Kf4 {[%emt 0:00:28]} Rd4+ {[%emt 0:00:15]} 70. Kf3 {[%emt 0:00:12]} Rd3+ {[%emt 0:00:57]} 71. Ke4 {[%emt 0:00:19]} Rd5 {[%emt 0:00:31]} 72. Kf4 {[%emt 0:00:14]} Kd7 {[%emt 0:00:25]} 73. Ke4 {[%emt 0:00:18]} Kc6 {[%emt 0:00:04]} 74. Kf4 {[%emt 0:00:14]} Rg5 {[%emt 0:00:41]} 75. Kf3 {[%emt 0:00:54]} Rg7 {[%emt 0:00:06]} 76. Kf4 {[%emt 0:00:13]} Kd5 {[%emt 0:00:06]} 77. Kf5 {[%emt 0:00:29] [#]} Rg5+ $1 {[%emt 0:00:16]} 78. Kf4 {[%emt 0:00:31] Beabsichtigt d7 und Matt.} Ke6 {[%emt 0:00:09]} 79. Kf3 {[%emt 0:00:55]} Rb5 {[%emt 0:00:17]} 80. Kf4 {[%emt 0:00:08]} Rb4+ {[%emt 0:00:12]} 81. Kf3 {[%emt 0:00:08]} Rd4 {[%emt 0:00:12]} 82. Kg3 {[%emt 0:00:29]} Kd7 {[%emt 0:00:45]} 83. Kf3 {[%emt 0:00:15]} Kc6 {[%emt 0:00:09]} 84. Kg3 {[%emt 0:00:10]} Kb5 {[%emt 0:00:25]} 85. Kh4 {[%emt 0:00:25]} Rd5 {[%emt 0:00:12]} 86. Kg3 {[%emt 0:00:07]} Kc4 {[%emt 0:00:17]} 87. Kf4 {[%emt 0:01:34]} Kd3 {[%emt 0:00:12]} 88. Kf3 {[%emt 0:00:19] [#]} Rd4 $1 {[%emt 0:00:10]} 89. Bb8 {[%emt 0:00:25]} Kc4 {[%emt 0:02:34]} 90. Bc7 {[%emt 0:00:19]} Kb4 {[%emt 0:00:57] Schwarz hat seine Chance genutzt.   Gewichteter Fehlerwert: Weiß=0.29 (präzise) /Schwarz=0.23 (präzise) .  Verlustzug:     	---       	Schwarz=1     Gewinn verpasst:   	Weiß=1     	---        Fehler:       	Weiß=7     	Schwarz=6     Ungenau:       	Weiß=3     	Schwarz=2     OK:         	Weiß=31    	Schwarz=33    Bester:       	Weiß=6     	Schwarz=3     Stark:        	Weiß=3     	Schwarz=6} *

[Event "1000GM Schev-G1 March 2024"]
[Site "Santa Clara"]
[Date "2024.03.09"]
[Round "1.3"]
[White "Atwell, Rose"]
[Black "Stearman, Josiah"]
[Result "0-1"]
[ECO "B51"]
[WhiteElo "2285"]
[BlackElo "2464"]
[Annotator "TA"]
[PlyCount "98"]
[EventDate "2024.03.06"]
[EventType "schev"]
[EventCountry "USA"]
[SourceTitle "playchess.com"]
[Source "ChessBase"]
[SourceQuality "1"]
[TimeControl "5400+30"]

{[%evp 12,98,9,10,11,4,18,7,15,7,0,0,8,-35,-17,-17,-5,-12,-8,-22,10,-30,55,-24,22,-31,0,-58,-54,-32,-53,-143,-141,-139,-134,-150,-141,-310,-316,-311,-313,-336,-353,-332,-320,-399,-249,-264,-287,-289,-272,-447,-444,-401,-264,-290,-223,-251,-254,-258,-241,-238,-256,-261,-258,-256,-266,-266,-259,-279,-279,-333,-333,-328,-322,-397,-395,-390,-357,-357,-331,-432,-432,-410,-408,-432,-418,-593,-556]} 1. e4 {[%emt 0:00:01]} c5 {[%emt 0:11:03]} 2. Nf3 {[%emt 0:00:05]} d6 {[%emt 0:00:28]} 3. Bb5+ {[%emt 0:00:06]} Nd7 {[%emt 0:00:05]} 4. c3 {[%emt 0:00:07]} Ngf6 {[%emt 0:00:10]} 5. Qe2 {[%emt 0:00:08]} a6 {[%emt 0:00:07]} 6. Ba4 {[%emt 0:00:06]} b5 {[%emt 0:00:31]} 7. Bc2 {[%emt 0:00:09]} Bb7 {[%emt 0:00:07]} 8. d4 {[%emt 0:01:04]} e6 {[%emt 0:00:45]} 9. O-O {[%emt 0:00:58]} Be7 {[%emt 0:00:07] The position is equal.} 10. Rd1 {[%emt 0:04:25]} Qc7 {[%emt 0:01:29]} 11. Bd3 {[%emt 0:05:39]} O-O {[%emt 0:01:22]} 12. b3 {[%emt 0:04:33]} a5 {[%emt 0:04:06]} 13. Nbd2 {[%emt 0:02:52]} b4 {[%emt 0:00:29]} 14. Bb2 {[%emt 0:03:11]} Rfc8 {[%emt 0:03:19]} 15. Rac1 {[%emt 0:03:17]} Bc6 {[%emt 0:14:56]} 16. Ne1 {[%emt 0:14:52]} Qa7 {[%emt 0:06:39]} ({Black should try} 16... bxc3 $11 17. Bxc3 cxd4 18. Bxd4 e5) 17. Nc2 {[%emt 0:04:54]} ({White should play} 17. d5 $1 $14 bxc3 (17... exd5 $2 18. exd5 Nxd5 19. c4 $18) 18. dxc6 cxd2 (18... cxb2 $2 {too greedy.} 19. cxd7 Nxd7 20. Rb1 $18) 19. Rxd2) 17... Bf8 {[%emt 0:08:21]} (17... Qb8 {might be stronger.}) 18. Qe3 {[%emt 0:04:54]} (18. cxb4 $11 axb4 19. dxc5 dxc5 20. a4) 18... Qb7 {[%emt 0:02:52]} 19. f4 {[%emt 0:04:07]} (19. f3 $11) 19... a4 {[%emt 0:01:05]} 20. cxb4 {[%emt 0:05:25]} cxb4 {[%emt 0:01:10]} 21. d5 {[%emt 0:06:06]} exd5 $17 {[%emt 0:00:56]} 22. e5 {[%emt 0:00:23]} dxe5 {[%emt 0:08:25]} 23. fxe5 {[%emt 0:00:06]} Ne4 {[%emt 0:00:15]} 24. Nf3 $2 {[%emt 0:06:27] White does not recover from this.} (24. Bd4 $17 {was worth a try.}) 24... axb3 $19 {[%emt 0:01:23]} 25. axb3 {[%emt 0:00:03]} Ndc5 {[%emt 0:01:06]} 26. Ncd4 {[%emt 0:02:38]} Ra2 {[%emt 0:00:27]} 27. Rc2 {[%emt 0:01:00]} Bd7 {[%emt 0:02:54]} 28. Be2 {[%emt 0:04:19]} Nc3 {[%emt 0:03:06]} 29. Bxc3 {[%emt 0:01:30]} Rxc2 {[%emt 0:00:02]} 30. Nxc2 {[%emt 0:00:13]} bxc3 {[%emt 0:00:05]} 31. Qxc3 $2 {[%emt 0:03:20]} (31. b4 {was necessary.} Ne6 32. Bd3) 31... Ne4 {[%emt 0:01:06]} (31... Nxb3 $2 32. Qb2 $19) ({Not} 31... Qxb3 32. Qxb3 Nxb3 33. Ncd4 Nxd4 34. Nxd4 $17) 32. Qb2 {[%emt 0:03:50]} Qa7+ {[%emt 0:00:06]} 33. Ncd4 {[%emt 0:01:41]} Nc3 {[%emt 0:01:56]} 34. Ra1 {[%emt 0:03:07]} Nxe2+ {[%emt 0:02:13]} 35. Kf2 {[%emt 0:00:07] [#]} Qxd4+ {[%emt 0:03:32][%mdl 512]} 36. Nxd4 {[%emt 0:00:06]} Nxd4 {[%emt 0:00:04]} 37. Rc1 {[%emt 0:02:58] Prevents Rc2+.} (37. Qxd4 $2 {loses.} Bc5 38. Ke3 Bxd4+ $19) 37... Rxc1 {[%emt 0:01:04]} 38. Qxc1 {[%emt 0:00:02]} Nxb3 {[%emt 0:00:12]} 39. Qd1 {[%emt 0:00:16]} Bc5+ {[%emt 0:00:43]} 40. Kg3 {[%emt 0:00:26]} Nd4 {[%emt 0:00:05]} 41. Qb1 {[%emt 0:00:48]} Nf5+ {[%emt 0:03:26]} 42. Kf4 {[%emt 0:00:11]} Be6 {[%emt 0:01:50]} 43. g4 {[%emt 0:00:35]} Nh4 {[%emt 0:00:11]} 44. Qb8+ {[%emt 0:00:18]} Bf8 {[%emt 0:00:02]} 45. g5 {[%emt 0:01:11]} Ng6+ {[%emt 0:00:04]} 46. Ke3 {[%emt 0:00:08]} h5 {[%emt 0:00:07]} 47. gxh6 {[%emt 0:00:16]} gxh6 {[%emt 0:00:04]} 48. Kd4 {[%emt 0:00:23]} Kh7 {[%emt 0:00:09] Threatens to win with ...Bg7.} 49. h4 {[%emt 0:00:18]} (49. Qa7 $142) 49... Bg7 {[%emt 0:00:07] Weighted Error Value: White=0.37/Black=0.19 (very precise) .  Loses game:     	White=1     	---        Mistake:       	White=6     	Black=2      Inaccurate:     	White=3     	Black=4      OK:         	White=12    	Black=19     Best:        	White=3     	Black=4      Brilliant:      	---       	Black=1} 0-1

[Event "1000GM Schev-G1 March 2024"]
[Site "Santa Clara"]
[Date "2024.03.09"]
[Round "1.4"]
[White "Griffith, Kyron"]
[Black "Guo, Ethan"]
[Result "1-0"]
[ECO "B23"]
[WhiteElo "2352"]
[BlackElo "2227"]
[Annotator "TA"]
[PlyCount "107"]
[EventDate "2024.03.06"]
[EventType "schev"]
[EventCountry "USA"]
[SourceTitle "playchess.com"]
[Source "ChessBase"]
[SourceQuality "1"]
[TimeControl "5400+30"]

{[%evp 9,107,0,0,-4,-14,2,0,8,16,-5,83,85,65,75,54,2,77,77,67,69,100,94,108,106,113,111,150,127,143,51,43,59,64,25,134,120,120,119,139,160,149,30,35,32,36,21,28,20,33,10,8,0,50,50,56,25,43,59,76,77,79,80,81,25,83,0,0,0,533,505,512,498,485,449,512,455,568,577,481,454,407,331,255,229,221,229,4133,4132,5811,5172,29984,29985,29985,29986,29986,29987,29987,29988,29988,29989]} 1. e4 {[%emt 0:00:02]} c5 {[%emt 0:10:34]} 2. Nc3 {[%emt 0:00:16]} d6 {[%emt 0:00:15]} 3. d4 {[%emt 0:00:26]} cxd4 {[%emt 0:00:23]} 4. Qxd4 {[%emt 0:00:05]} Nc6 {[%emt 0:00:09]} 5. Qd2 {[%emt 0:00:13]} e6 {[%emt 0:00:11]} 6. b3 {[%emt 0:00:55]} Nf6 {[%emt 0:00:20]} 7. Bb2 {[%emt 0:01:22]} d5 {[%emt 0:01:29]} 8. exd5 {[%emt 1:31:11] Die Stellung ist ausgeglichen.} exd5 {[%emt 0:00:11]} 9. O-O-O {[%emt 0:00:00][%cal Rc3d5]} Bb4 {[%emt 0:04:37]} (9... Be6 $1 $11 {bleibt in der Remisbreite.}) 10. a3 $16 {[%emt 0:00:00]} Bxc3 {[%emt 0:14:46]} 11. Qxc3 {[%emt 0:00:00]} O-O {[%emt 0:04:57]} 12. f3 {[%emt 0:00:00]} ({Günstiger ist} 12. Ne2 $14) 12... Be6 {[%emt 0:03:32]} (12... d4 $11 13. Qd2 Nd5) 13. Ne2 {[%emt 0:00:00] Weiß steht aktiver.} Rc8 {[%emt 0:05:26]} 14. Nd4 {[%emt 0:00:00] Verhindert Bf5} Qb6 {[%emt 0:07:36]} 15. Kb1 $1 {[%emt 0:00:00]} Rfe8 {[%emt 0:02:48]} 16. g4 {[%emt 0:00:00]} a6 {[%emt 0:09:23]} 17. Qd2 {[%emt 0:00:00]} Qc5 {[%emt 0:03:52]} 18. Nxc6 {[%emt 0:00:00]} Rxc6 {[%emt 0:00:55]} 19. Bxf6 {[%emt 0:00:00]} (19. Bd3 $16 {Und h4 würde nun gewinnen.} Bd7 20. Rhe1) 19... gxf6 $14 {[%emt 0:00:13]} 20. Bd3 {[%emt 0:00:00]} Kg7 {[%emt 0:06:35][%cal Bg8g7,Bg7f6,Bf6e7,Be7d8,Bd8c7][%mdl 32] Es drohte Qh6+} (20... Qxa3 $2 {verliert.} 21. Qh6 Rb6 22. Bxh7+ (22. Qxf6 Rc8 $11) 22... Kh8 23. Rhe1 $18 (23. Qxf6+ $2 Kxh7 24. Qh4+ Kg8 $19)) 21. g5 {[%emt 0:00:00]} Qxa3 {[%emt 0:03:16]} (21... f5 $1 $11) 22. gxf6+ $16 {[%emt 0:00:00]} Kxf6 {[%emt 0:00:19]} 23. f4 {[%emt 0:00:00][%cal Bf3f4,Bf4f5][%mdl 32] Manche mögen's heiß} ({Jedoch nicht} 23. Bxh7 Rc5 $14) 23... Ke7 {[%emt 0:08:01]} 24. f5 {[%emt 0:00:00]} ({Keinesfalls} 24. Bxh7 $6 Rc5 $11) 24... Bd7 {[%emt 0:00:19]} 25. Qg5+ {[%emt 0:00:00]} ({Besser ist} 25. Bc4 $16 Qc5 26. Bxd5) 25... f6 $11 {[%emt 0:01:09]} 26. Rhe1+ {[%emt 0:00:00]} Kd8 {[%emt 0:00:30]} 27. Rxe8+ {[%emt 0:00:00]} Bxe8 {[%emt 0:00:12]} 28. Qg8 {[%emt 0:00:00][%csl LRd5,LRh7]} Qe7 {[%emt 0:02:26] Verhindert Re1} 29. Bc4 {[%emt 0:00:00][%cal Og8g3] und nun wäre Qg3! stark für Weiss.} Rd6 {[%emt 0:02:03]} 30. Bxd5 {[%emt 0:00:00]} Qe2 {[%emt 0:04:23]} (30... Qe5 $11) 31. Rc1 $14 {[%emt 0:00:00]} Kc7 {[%emt 0:01:55]} 32. Be6 {[%emt 0:00:00]} Bd7 {[%emt 0:01:13]} 33. Qxh7 {[%emt 0:00:00]} Kc6 {[%emt 0:00:29]} 34. Bxd7+ {[%emt 0:00:00]} Rxd7 $16 {[%emt 0:00:07][%mdl 4096] Endspiel. KQR-KQR} 35. Qh4 {[%emt 0:00:00]} Qe5 {[%emt 0:02:35]} 36. Qc4+ {[%emt 0:00:00]} (36. Re1 $16 Qxf5 37. Qg3) 36... Kb6 $11 {[%emt 0:00:08]} 37. Rf1 {[%emt 0:02:22]} (37. Qe6+ $16 Qxe6 38. fxe6) 37... Qxh2 {[%emt 0:01:05]} 38. Re1 {[%emt 0:00:18] Und jetzt Re6+ wäre schön.} Qd2 $2 {[%emt 0:00:29][%mdl 8192] Jetzt gehts bergab für Schwarz.} (38... Ka7 $11 {und Schwarz ist OK.}) 39. Re6+ $18 {[%emt 0:00:35]} Rd6 {[%emt 0:00:03] [#]} 40. b4 $1 {[%emt 0:00:24][%csl Gb4][%cal Rc4c5]} Rc6 {[%emt 0:00:27] [#]} 41. Rxf6 $3 {[%emt 0:06:05][%mdl 512]} Qe1+ {[%emt 0:01:02]} (41... Kc7 42. Rxc6+) 42. Ka2 {[%emt 0:00:07]} Qf2 {[%emt 0:00:13] Verhindert Qd4+.} 43. Rxc6+ {[%emt 0:01:37]} bxc6 {[%emt 0:00:04] KQ-KQ} 44. Qd3 {[%emt 0:00:26] Qd8+ ist eine echte Drohung.} a5 {[%emt 0:00:23]} 45. bxa5+ {[%emt 0:01:36]} Kxa5 {[%emt 0:00:05]} 46. Qc3+ {[%emt 0:00:04]} Kb6 {[%emt 0:00:13]} 47. f6 {[%emt 0:00:13] Schwarz muss nun Qe5 beachten.} Kc7 $2 {[%emt 0:00:28]} (47... Qf5 48. Kb2 c5 49. Qb3+ Kc7 50. Qf7+ Kb6) 48. Qe5+ {[%emt 0:00:13]} Kb6 {[%emt 0:00:59]} 49. Kb2 {[%emt 0:00:26]} Qf3 {[%emt 0:00:39]} 50. Qd4+ {[%emt 0:00:22] Weiß setzt Matt.} Kc7 {[%emt 0:00:39] [#]} 51. f7 $1 {[%emt 0:00:26][%mdl 512]} Qf5 {[%emt 0:01:01]} 52. Qa7+ {[%emt 0:00:10]} Kd6 {[%emt 0:00:11]} 53. Qb8+ {[%emt 0:00:18]} Ke7 {[%emt 0:00:10]} 54. Qe8+ {[%emt 0:00:05] Gewichteter Fehlerwert: Weiß=0.15 (sehr präzise) /Schwarz=0.45.  Verlustzug:     	---       	Schwarz=1     Fehler:       	Weiß=5     	Schwarz=5     Ungenau:       	Weiß=2     	Schwarz=3     OK:         	Weiß=18    	Schwarz=10    Bester:       	Weiß=4     	Schwarz=6     Stark:        	Weiß=2     	---        Brilliant:      	Weiß=1     	---} 1-0

[Event "1000GM Schev-G1 March 2024"]
[Site "Santa Clara"]
[Date "2024.03.09"]
[Round "1.5"]
[White "Arenas, David"]
[Black "Yan, Nathan"]
[Result "1/2-1/2"]
[ECO "C50"]
[WhiteElo "2368"]
[BlackElo "2185"]
[Annotator "TA"]
[PlyCount "56"]
[EventDate "2024.03.06"]
[EventType "schev"]
[EventCountry "USA"]
[SourceTitle "playchess.com"]
[Source "ChessBase"]
[SourceQuality "1"]
[TimeControl "5400+30"]

{[%evp 14,56,0,-20,2,0,0,0,30,41,41,0,43,32,30,19,26,24,21,13,7,19,32,33,22,22,31,22,25,22,23,19,28,20,49,29,50,0,0,0,0,0,0,-7,0]} 1. e4 {[%emt 1:31:00]} e5 {[%emt 0:12:47]} 2. Nf3 {[%emt 0:00:00]} Nc6 {[%emt 0:00:49]} 3. Bc4 {[%emt 0:00:00]} Bc5 {[%emt 0:00:36]} 4. Nc3 {[%emt 0:00:00]} Nf6 {[%emt 0:00:42]} 5. d3 {[%emt 0:00:00]} h6 {[%emt 0:00:41]} 6. Be3 {[%emt 0:00:00]} Bxe3 {[%emt 0:02:32]} 7. fxe3 {[%emt 0:00:00]} d6 {[%emt 0:00:12]} 8. O-O {[%emt 0:00:00]} Be6 {[%emt 0:02:43]} 9. Bb3 {[%emt 0:00:00]} O-O {[%emt 0:03:34]} 10. Qe1 {[%emt 0:00:00]} d5 {[%emt 0:11:11]} 11. exd5 {[%emt 0:00:00]} Nxd5 {[%emt 0:01:17]} 12. e4 {[%emt 0:00:00]} Nf4 {[%emt 0:10:12] [#]} 13. Nxe5 $1 {[%emt 0:00:00]} Qd4+ $1 {[%emt 0:04:52]} 14. Qf2 {[%emt 0:00:00] Sehr scharf!} Nh3+ {[%emt 0:00:20]} 15. gxh3 {[%emt 0:00:00]} Qxe5 {[%emt 0:00:21]} 16. Qg3 {[%emt 0:00:00]} Qxg3+ {[%emt 0:01:25]} 17. hxg3 {[%emt 0:00:00]} Bxh3 {[%emt 0:00:03]} 18. Rf2 {[%emt 0:00:00]} Nd4 {[%emt 0:07:37]} 19. Nd5 {[%emt 0:00:00]} Nxb3 {[%emt 0:02:10]} 20. axb3 {[%emt 0:00:00]} c6 {[%emt 0:00:20]} 21. Ne3 {[%emt 0:00:00] Droht g4.} Be6 {[%emt 0:00:42]} 22. b4 {[%emt 0:00:00]} Rfd8 {[%emt 0:01:39]} 23. Rd2 {[%emt 0:00:00]} g6 {[%emt 0:10:57]} 24. c3 {[%emt 0:00:00]} Kg7 {[%emt 0:02:41]} 25. Nc2 {[%emt 0:00:00]} ({Vorzuziehen ist} 25. d4 $14) 25... h5 {[%emt 0:05:59] Die Stellung ist ausgeglichen.} 26. Kg2 {[%emt 0:00:00]} Rh8 {[%emt 0:03:28]} 27. Nd4 {[%emt 0:00:00]} Bg4 {[%emt 0:03:20]} 28. Rf2 {[%emt 0:00:00]} Rhf8 {[%emt 0:11:20] Gewichteter Fehlerwert: Weiß=0.10 (sehr präzise) /Schwarz=0.06 (makellos) .  Fehler:       	Weiß=1     	---        Ungenau:       	Weiß=1     	Schwarz=3     OK:         	Weiß=4     	Schwarz=7     Bester:       	Weiß=2     	Schwarz=4     Stark:        	---       	Schwarz=1     Brilliant:      	Weiß=1     	---} 1/2-1/2